bitfinex/quotes_BTCUSD_20220218
["timestamp","ask_amount","ask_price","bid_price","bid_amount"]
[1645155705993,0.0102,40692.0,40688.0,0.061462]
[1645155706189,0.332158,40691.0,40688.0,0.061462]
[1645155706389,0.0102,40692.0,40688.0,0.061462]
[1645155706790,0.332158,40691.0,40688.0,0.061462]
[1645155706990,0.3,40691.0,40685.0,0.0699173]
[1645155707191,0.0092,40692.0,40685.0,0.0699173]
[1645155707391,0.002,40691.0,40685.0,0.0699173]
[1645155707591,0.002,40691.0,40685.0,0.13137806]
[1645155707791,0.002,40691.0,40687.0,0.061459]
[1645155707992,0.20871913,40690.0,40687.0,0.061459]
[1645155708192,0.21071913,40691.0,40687.0,0.061459]
[1645155708392,0.21071913,40691.0,40688.0,0.061462]
[1645155708794,0.27018213,40691.0,40688.0,0.061462]
[1645155709426,0.27218213,40691.0,40686.0,0.061463]
[1645155709626,0.21071913,40691.0,40687.0,0.061463]
[1645155710524,0.21071913,40691.0,40688.0,0.06146]
[1645155710725,0.20871913,40691.0,40688.0,0.122919]
[1645155713482,0.27218213,40691.0,40688.0,0.061459]
[1645155713683,0.27218213,40691.0,40687.0,0.061463]
[1645155715283,0.27018213,40691.0,40687.0,0.061463]
[1645155715484,0.20971913,40691.0,40687.0,0.122924]
[1645155715685,0.20971913,40691.0,40687.0,0.061463]
[1645155716535,0.20971913,40691.0,40688.0,0.061459]
[1645155716735,0.20871913,40691.0,40688.0,0.122917]
[1645155716936,0.20871913,40691.0,40688.0,0.061458]
[1645155717539,0.20871913,40691.0,40688.0,0.062458]
[1645155719436,0.27218113,40691.0,40688.0,0.061458]
[1645155720691,0.20871913,40691.0,40688.0,0.061458]
[1645155720888,0.20871913,40690.0,40688.0,0.061458]
[1645155721989,0.20871913,40690.0,40686.0,0.27097207]
[1645155723191,0.001,40691.0,40686.0,0.061463]
[1645155723192,0.20871913,40689.0,40686.0,0.061463]
[1645155723393,0.20871913,40688.0,40686.0,0.061463]
[1645155723592,0.20871913,40688.0,40686.0,0.062463]
[1645155723795,0.3,40687.0,40686.0,0.001]
[1645155724238,0.632158,40687.0,40686.0,0.001]
[1645155724443,0.84087713,40687.0,40686.0,0.001]
[1645155724647,0.632158,40687.0,40686.0,0.001]
[1645155724840,0.89318285,40687.0,40686.0,0.001]
[1645155725040,0.89318285,40687.0,40683.0,0.00026132]
[1645155725241,0.332158,40684.0,40682.0,0.00126132]
[1645155725441,0.84371781,40683.0,40682.0,0.00126132]
[1645155726040,1.14189144,40683.0,40682.0,0.00126132]
[1645155727442,0.81073344,40683.0,40682.0,0.00126132]
[1645155727689,0.84289144,40683.0,40682.0,0.00126132]
[1645155728484,0.001,40683.0,40682.0,0.00126132]
[1645155728684,0.061477,40684.0,40682.0,0.00126132]
[1645155729086,0.51810051,40686.0,40682.0,0.00126132]
[1645155729488,0.77032413,40686.0,40682.0,0.00126132]
[1645155729987,0.0094,40686.0,40682.0,0.00126132]
[1645155730287,0.0094,40686.0,40683.0,0.061467]
[1645155730586,0.0094,40686.0,40683.0,0.00026132]
[1645155730786,0.0094,40686.0,40682.0,0.00126132]
[1645155730987,0.28336788,40684.0,40682.0,0.00126132]
[1645155732034,0.3094,40686.0,40682.0,0.00126132]
[1645155732236,0.0094,40686.0,40682.0,0.06273032]
[1645155733436,0.0124,40686.0,40682.0,0.06273032]
[1645155734440,0.073871,40686.0,40682.0,0.06273032]
[1645155734835,0.073871,40686.0,40682.0,0.00126132]
[1645155734836,0.070871,40686.0,40682.0,0.00126132]
[1645155735286,0.370871,40686.0,40682.0,0.00126132]
[1645155735481,0.073871,40686.0,40682.0,0.00126132]
[1645155735683,0.0124,40686.0,40682.0,0.00126132]
[1645155736683,0.0124,40686.0,40682.0,0.06272488]
[1645155736882,0.0094,40686.0,40682.0,0.12419288]
[1645155737284,0.0094,40686.0,40683.0,0.01539204]
[1645155737482,0.0094,40686.0,40683.0,0.01565336]
[1645155738483,0.0094,40686.0,40683.0,0.07711636]
[1645155738685,0.20870051,40688.0,40684.0,0.061463]
[1645155738932,0.20870051,40688.0,40683.0,0.06172432]
[1645155739133,0.50870051,40688.0,40683.0,0.00026132]
[1645155739334,0.50870051,40688.0,40682.0,0.00126132]
[1645155739535,0.332158,40687.0,40682.0,0.00126132]
[1645155740235,0.27317351,40688.0,40682.0,0.00126132]
[1645155740434,0.061468,40687.0,40682.0,0.00126132]
[1645155741037,0.061468,40687.0,40682.0,0.06273032]
[1645155741437,0.065468,40687.0,40682.0,0.00126132]
[1645155742342,0.065468,40687.0,40682.0,0.06273032]
[1645155742690,0.061468,40687.0,40682.0,0.06273032]
[1645155742885,0.061468,40687.0,40682.0,0.00126132]
[1645155743286,0.061468,40687.0,40682.0,0.06272932]
[1645155743485,0.061468,40687.0,40682.0,0.00126132]
[1645155745488,0.064468,40687.0,40682.0,0.00126132]
[1645155746736,0.061468,40687.0,40682.0,0.00126132]
[1645155747442,0.064468,40687.0,40682.0,0.00126132]
[1645155747637,0.003,40687.0,40682.0,0.06272932]
[1645155748038,0.003,40687.0,40682.0,0.00126132]
[1645155748638,0.064469,40687.0,40682.0,0.00126132]
[1645155748839,0.061469,40687.0,40682.0,0.00126132]
[1645155749141,0.20870051,40688.0,40682.0,0.00126132]
[1645155749142,0.393635,40686.0,40682.0,0.00126132]
[1645155749339,0.332158,40686.0,40682.0,0.00126132]
[1645155749841,0.393635,40686.0,40682.0,0.00126132]
[1645155750186,0.332158,40687.0,40682.0,0.00126132]
[1645155750882,0.332158,40687.0,40682.0,0.06273032]
[1645155751085,0.393628,40687.0,40682.0,0.00126132]
[1645155751484,0.396628,40687.0,40682.0,0.00126132]
[1645155752886,0.393628,40687.0,40682.0,0.00126132]
[1645155753485,0.395628,40687.0,40682.0,0.00126132]
[1645155754538,0.395628,40687.0,40683.0,0.061468]
[1645155754739,0.332158,40687.0,40683.0,0.06172932]
[1645155755038,0.332158,40687.0,40683.0,0.12319632]
[1645155755537,0.332158,40687.0,40683.0,0.00026132]
[1645155755739,0.332158,40687.0,40682.0,0.00126132]
[1645155756038,0.332158,40687.0,40682.0,0.06273032]
[1645155756039,0.332158,40686.0,40682.0,0.06273032]
[1645155756839,0.27016951,40687.0,40682.0,0.06273032]
[1645155757039,0.332158,40686.0,40682.0,0.06273032]
[1645155757441,0.332158,40686.0,40682.0,0.00126132]
[1645155757683,0.393627,40686.0,40682.0,0.00126132]
[1645155758083,0.332158,40686.0,40682.0,0.00126132]
[1645155758484,0.332158,40686.0,40683.0,0.061468]
[1645155758684,0.393625,40686.0,40683.0,0.06172932]
[1645155758884,0.393625,40686.0,40683.0,0.00026132]
[1645155759085,0.393625,40686.0,40682.0,0.00126132]
[1645155759584,0.396625,40686.0,40682.0,0.00126132]
[1645155759783,0.064467,40686.0,40682.0,0.06273032]
[1645155760587,0.332158,40685.0,40682.0,0.00126132]
[1645155761183,0.061467,40686.0,40682.0,0.00126132]
[1645155761736,0.06147,40684.0,40682.0,0.00126132]
[1645155762337,0.002,40685.0,40682.0,0.00126132]
[1645155762939,0.002,40685.0,40683.0,0.061467]
[1645155763144,0.002,40685.0,40683.0,0.06172832]
[1645155763537,0.332158,40686.0,40683.0,0.06172832]
[1645155764236,0.54085851,40686.0,40683.0,0.06172832]
[1645155764838,0.60232651,40686.0,40683.0,0.06172832]
[1645155765037,0.27016851,40686.0,40683.0,0.06172832]
[1645155765696,0.20870051,40686.0,40683.0,0.06172832]
[1645155765891,0.393628,40686.0,40683.0,0.00026132]
[1645155766097,0.06147,40686.0,40682.0,0.00126132]
[1645155766492,0.27017051,40686.0,40682.0,0.00126132]
[1645155767297,0.06147,40686.0,40682.0,0.00126132]
[1645155767594,0.06547,40686.0,40682.0,0.00126132]
[1645155767795,0.27392156,40686.0,40682.0,0.00126132]
[1645155767996,0.06547,40686.0,40682.0,0.00126132]
[1645155768200,0.273921,40686.0,40682.0,0.00126132]
[1645155768396,0.06547,40686.0,40682.0,0.00126132]
[1645155768596,0.27392225,40686.0,40682.0,0.00126132]
[1645155768798,0.06147,40686.0,40682.0,0.00126132]
[1645155769042,0.061473,40684.0,40682.0,0.00126132]
[1645155771245,0.26994169,40684.0,40682.0,0.00126132]
[1645155771545,0.061473,40684.0,40682.0,0.06273132]
[1645155771745,0.061473,40684.0,40682.0,0.00126132]
[1645155771944,0.332158,40683.0,40682.0,0.00126132]
[1645155772145,0.26993387,40684.0,40682.0,0.00126132]
[1645155772345,0.332158,40683.0,40682.0,0.00126132]
[1645155772546,0.26993182,40684.0,40682.0,0.00055815]
[1645155772989,0.54061682,40683.0,40682.0,0.00055815]
[1645155773191,0.20845882,40683.0,40682.0,0.00055815]
[1645155773589,0.20945882,40683.0,40682.0,0.00055815]
[1645155773790,0.062474,40683.0,40680.0,0.19214446]
[1645155774391,0.062474,40683.0,40680.0,0.25361746]
[1645155774792,0.062474,40683.0,40679.0,0.002]
[1645155776292,0.26407932,40682.0,40679.0,0.002]
[1645155776541,0.32555932,40682.0,40679.0,0.002]
[1645155777539,0.32755932,40682.0,40679.0,0.002]
[1645155778940,0.32555932,40682.0,40679.0,0.002]
[1645155779639,0.32755932,40682.0,40679.0,0.002]
[1645155780893,0.06148,40682.0,40679.0,0.002]
[1645155781692,0.06348,40682.0,40679.0,0.002]
[1645155782894,0.06148,40682.0,40679.0,0.002]
[1645155783703,0.06148,40682.0,40679.0,0.003]
[1645155784140,0.13522349,40682.0,40679.0,0.003]
[1645155784938,0.13522349,40682.0,40679.0,0.002]
[1645155785741,0.13522349,40682.0,40679.0,0.003]
[1645155786839,0.13522349,40682.0,40679.0,0.002]
[1645155787693,0.13622349,40682.0,40679.0,0.002]
[1645155788895,0.13522349,40682.0,40679.0,0.002]
[1645155789591,0.13522349,40682.0,40679.0,0.003]
[1645155789792,0.13522349,40682.0,40679.0,0.00325357]
[1645155789991,0.13522349,40682.0,40679.0,0.12620357]
[1645155790992,0.13522349,40682.0,40679.0,0.00225357]
[1645155791740,0.13522349,40682.0,40679.0,0.00325357]
[1645155792842,0.13522349,40682.0,40679.0,0.00225357]
[1645155793642,0.13294893,40682.0,40679.0,0.00225357]
[1645155795047,0.13194893,40682.0,40679.0,0.00225357]
[1645155795695,0.13294893,40682.0,40679.0,0.00225357]
[1645155796896,0.13194893,40682.0,40679.0,0.00225357]
[1645155797695,0.70412312,40681.0,40679.0,0.00125357]
[1645155797903,0.70412312,40681.0,40677.0,0.0021]
[1645155797904,0.00116456,40678.0,40677.0,0.0011]
[1645155798094,0.68232256,40678.0,40677.0,0.0011]
[1645155798295,0.95,40676.0,40673.0,0.00122274]
[1645155798496,0.95,40676.0,40672.0,0.00199097]
[1645155798497,1.21854449,40673.0,40672.0,0.00199097]
[1645155798695,1.21854449,40673.0,40672.0,9.097e-05]
[1645155798696,3.6100615,40673.0,40672.0,9.097e-05]
[1645155798941,2.255,40672.0,40667.0,0.0031]
[1645155799141,2.587158,40671.0,40667.0,0.0031]
[1645155799349,1.305,40667.0,40665.0,0.0031]
[1645155799542,0.55028001,40666.0,40665.0,0.0031]
[1645155799743,0.67893536,40666.0,40665.0,0.0031]
[1645155799943,0.47071335,40666.0,40665.0,0.0031]
[1645155800341,0.77071335,40666.0,40665.0,0.0031]
[1645155800542,0.642058,40666.0,40665.0,0.0031]
[1645155802702,0.332158,40659.0,40655.0,0.33159688]
[1645155802893,0.06150407,40659.0,40657.0,0.00089476]
[1645155803095,0.332158,40658.0,40657.0,0.00089476]
[1645155803494,0.06150407,40659.0,40657.0,0.00081751]
[1645155803696,0.002,40658.0,40657.0,0.00081751]
[1645155803894,0.061504,40657.0,40655.0,0.33159688]
[1645155804093,0.1230091,40657.0,40655.0,0.33159688]
[1645155805694,0.1240091,40657.0,40655.0,0.33159688]
[1645155806943,0.1230091,40657.0,40655.0,0.33159688]
[1645155807646,0.1240091,40657.0,40655.0,0.33159688]
[1645155808945,0.1230091,40657.0,40655.0,0.33159688]
[1645155809650,0.1240091,40657.0,40655.0,0.33159688]
[1645155810047,0.332158,40656.0,40655.0,0.33159688]
[1645155810289,0.1240091,40657.0,40655.0,0.33159688]
[1645155810889,0.1230091,40657.0,40656.0,0.332158]
[1645155811089,0.12299947,40660.0,40656.0,0.332158]
[1645155811288,0.12299947,40660.0,40655.0,0.33159688]
[1645155811789,0.12399947,40660.0,40655.0,0.33159688]
[1645155812492,0.12399947,40660.0,40655.0,0.33184746]
[1645155812890,0.001,40660.0,40656.0,0.332158]
[1645155813089,0.00025054,40661.0,40655.0,0.33184746]
[1645155813490,0.06149642,40662.0,40655.0,0.33159688]
[1645155813692,0.00025054,40661.0,40655.0,0.33409863]
[1645155814141,0.06149845,40660.0,40655.0,0.33409863]
[1645155814940,0.06149845,40660.0,40655.0,0.33209863]
[1645155815341,0.12300045,40660.0,40656.0,0.332158]
[1645155815641,0.06149845,40660.0,40656.0,0.00025117]
[1645155815841,0.06149845,40660.0,40655.0,0.33384805]
[1645155816441,0.12300045,40660.0,40655.0,0.33384805]
[1645155816642,0.06150665,40659.0,40655.0,0.33384805]
[1645155817042,0.06150665,40659.0,40655.0,0.33184805]
[1645155817697,0.332158,40658.0,40655.0,0.33184805]
[1645155817892,0.42302179,40658.0,40655.0,0.33184805]
[1645155818091,0.12302179,40658.0,40655.0,0.33184805]
[1645155818491,0.18453479,40658.0,40655.0,0.33184805]
[1645155818695,0.061511,40657.0,40655.0,0.33184805]
[1645155818892,0.12301844,40657.0,40655.0,0.33184805]
[1645155820397,0.12301844,40657.0,40655.0,0.33384805]
[1645155821640,0.12301844,40657.0,40655.0,0.33184805]
[1645155822640,0.12301844,40657.0,40655.0,0.33384805]
[1645155823740,0.332158,40656.0,40655.0,0.33384805]
[1645155823943,0.632158,40656.0,40655.0,0.33384805]
[1645155824142,0.332158,40656.0,40655.0,0.33384805]
[1645155824740,0.332158,40656.0,40655.0,0.33184805]
[1645155825794,0.634158,40656.0,40655.0,0.33184805]
[1645155826393,0.632158,40656.0,40655.0,0.33184805]
[1645155829644,0.632158,40656.0,40655.0,0.00025117]
[1645155829844,0.634158,40656.0,40654.0,0.00335117]
[1645155830042,0.632158,40655.0,40654.0,0.00335117]
[1645155830645,0.632158,40655.0,40654.0,0.00325254]
[1645155830845,0.732158,40655.0,40654.0,0.00325254]
[1645155831845,0.734158,40655.0,40654.0,0.00325254]
[1645155832045,0.95,40654.0,40652.0,0.00024964]
[1645155832246,0.731158,40653.0,40652.0,0.00024964]
[1645155832445,0.79269642,40653.0,40652.0,0.00024964]
[1645155832699,0.95,40652.0,40645.0,0.00371031]
[1645155832897,0.82775838,40651.0,40650.0,0.00024964]
[1645155833093,1.12775838,40651.0,40650.0,0.00024964]
[1645155833294,2.53275838,40651.0,40650.0,0.00024964]
[1645155833495,2.71737805,40651.0,40650.0,0.00024964]
[1645155833695,3.13737805,40651.0,40650.0,0.00024964]
[1645155833896,3.07783805,40651.0,40645.0,0.00371031]
[1645155834296,1.305,40649.0,40645.0,0.00371031]
[1645155834497,1.986158,40648.0,40645.0,0.00371031]
[1645155834996,2.086158,40648.0,40645.0,0.00371031]
[1645155835398,0.061539,40647.0,40645.0,0.00371031]
[1645155835595,0.632158,40646.0,40645.0,0.00371031]
[1645155836940,0.732158,40646.0,40645.0,0.00371031]
[1645155837949,0.734158,40646.0,40645.0,0.00371031]
[1645155840889,2.039158,40646.0,40645.0,0.00371031]
[1645155841089,2.088158,40646.0,40645.0,0.0011]
[1645155841292,2.088158,40646.0,40641.0,0.003]
[1645155841293,2.255,40643.0,40641.0,0.003]
[1645155841493,2.14006839,40642.0,40637.0,0.00099881]
[1645155841891,1.637158,40640.0,40637.0,0.00099881]
[1645155842395,1.637158,40640.0,40630.0,0.3652]
[1645155842396,1.786158,40640.0,40630.0,0.3652]
[1645155842594,1.305,40638.0,40631.0,0.00099888]
[1645155842790,1.305,40636.0,40631.0,0.00099888]
[1645155842998,0.55225436,40635.0,40631.0,0.00099888]
[1645155843193,0.67187355,40633.0,40631.0,0.00099888]
[1645155843591,0.67187355,40633.0,40630.0,0.0021]
[1645155843592,0.89499655,40633.0,40630.0,0.0021]
[1645155843791,1.31499578,40633.0,40630.0,0.0021]
[1645155844040,1.31599578,40633.0,40630.0,0.0021]
[1645155844643,0.48256023,40633.0,40630.0,0.0021]
[1645155844844,0.48256023,40633.0,40631.0,0.332158]
[1645155844845,0.421,40633.0,40631.0,0.332158]
[1645155845244,0.421,40633.0,40632.0,0.061535]
[1645155845443,0.41967023,40633.0,40632.0,0.393693]
[1645155846345,0.41967023,40633.0,40632.0,0.443693]
[1645155846346,0.41467023,40633.0,40632.0,0.443693]
[1645155846642,0.41467023,40633.0,40632.0,0.393693]
[1645155846842,0.3,40640.0,40633.0,0.061537]
[1645155847043,0.73756,40641.0,40634.0,0.393695]
[1645155847245,0.06153663,40640.0,40634.0,0.061537]
[1645155847696,0.06153663,40640.0,40635.0,0.332158]
[1645155847890,0.06153663,40640.0,40635.0,0.0002463]
[1645155848109,0.73756,40641.0,40636.0,0.393692]
[1645155848295,0.73756,40641.0,40639.0,0.332158]
[1645155848489,0.73756,40641.0,40640.0,0.049]
[1645155848691,0.73756,40641.0,40640.0,0.381158]
[1645155849292,0.73756,40641.0,40640.0,0.049]
[1645155849593,0.73756,40641.0,40638.0,0.0002463]
[1645155849892,0.73756,40641.0,40640.0,0.0002463]
[1645155849893,1.071718,40641.0,40640.0,0.0002463]
[1645155850093,0.73956,40641.0,40636.0,0.0002463]
[1645155850292,0.8011,40641.0,40635.0,0.05024955]
[1645155850493,0.06153847,40640.0,40635.0,0.05024955]
[1645155850692,0.24632973,40638.0,40635.0,0.0502463]
[1645155850896,0.24632973,40638.0,40635.0,0.05049584]
[1645155851095,0.06153847,40640.0,40635.0,0.04949584]
[1645155851293,1.04542774,40641.0,40635.0,0.04924954]
[1645155851539,1.04542774,40641.0,40636.0,0.061535]
[1645155851540,1.15756,40641.0,40636.0,0.061535]
[1645155851740,1.15756,40641.0,40636.0,0.0617813]
[1645155852741,1.47861461,40641.0,40636.0,0.0617813]
[1645155852941,1.47861461,40641.0,40636.0,0.0002463]
[1645155852942,1.54014806,40641.0,40636.0,0.0002463]
[1645155853142,1.21909345,40641.0,40635.0,0.080537]
[1645155853342,1.21909345,40641.0,40635.0,0.08077098]
[1645155853942,1.22009345,40641.0,40637.0,0.061533]
[1645155854144,1.15856,40641.0,40637.0,0.123061]
[1645155854342,1.15856,40641.0,40637.0,0.1733073]
[1645155854542,0.73856,40641.0,40637.0,0.1117743]
[1645155854743,0.73856,40641.0,40639.0,0.05]
[1645155854945,0.73856,40641.0,40638.0,0.0002463]
[1645155855200,0.73756,40641.0,40640.0,0.393687]
[1645155855596,0.73756,40641.0,40640.0,0.3939333]
[1645155855799,0.73756,40641.0,40640.0,0.4449333]
[1645155855995,0.73756,40641.0,40640.0,0.4949333]
[1645155857298,0.73756,40641.0,40640.0,0.4929333]
[1645155857797,0.73756,40641.0,40640.0,0.4949333]
[1645155859040,0.73756,40641.0,40640.0,0.4929333]
[1645155859839,0.73756,40641.0,40640.0,0.4949333]
[1645155860642,0.5176085,40641.0,40640.0,0.4949333]
[1645155860840,0.5176085,40641.0,40640.0,0.8934547]
[1645155861241,0.00084338,40644.0,40643.0,0.18160539]
[1645155862241,0.00084338,40644.0,40643.0,0.24311339]
[1645155862694,0.00084338,40644.0,40643.0,0.25231339]
[1645155863090,0.00084338,40644.0,40643.0,0.30231339]
[1645155863894,0.00084338,40644.0,40643.0,0.25231339]
[1645155865793,0.00084338,40644.0,40643.0,0.25431339]
[1645155867040,0.00084338,40644.0,40643.0,0.25231339]
[1645155867842,0.00084338,40644.0,40643.0,0.25431339]
[1645155868544,0.00084338,40644.0,40643.0,0.30331339]
[1645155869148,0.00084338,40644.0,40643.0,0.5698448]
[1645155869746,0.00084338,40644.0,40643.0,0.6178448]
[1645155870044,0.00084338,40644.0,40643.0,0.6198448]
[1645155870298,0.00084338,40644.0,40643.0,0.7198448]
[1645155871194,0.00084338,40644.0,40643.0,0.7178448]
[1645155871895,0.00084338,40644.0,40643.0,0.7218448]
[1645155872097,0.00184338,40644.0,40643.0,0.7218448]
[1645155873097,0.00184338,40644.0,40643.0,0.7178448]
[1645155873498,0.00184338,40644.0,40643.0,0.45131339]
[1645155873938,0.00184338,40644.0,40643.0,0.45831339]
[1645155875141,0.00184338,40644.0,40643.0,0.45131339]
[1645155876641,0.00184338,40644.0,40643.0,0.45155841]
[1645155878292,0.00184338,40644.0,40643.0,0.71337361]
[1645155879894,0.00184338,40644.0,40643.0,0.71737361]
[1645155880296,0.00184338,40644.0,40643.0,0.45555841]
[1645155881442,0.00184338,40644.0,40643.0,0.45155841]
[1645155881845,0.00011965,40650.0,40643.0,0.45155841]
[1645155881846,0.00011965,40650.0,40647.0,0.26149811]
[1645155882050,0.3,40664.0,40650.0,0.184477]
[1645155882244,0.30828322,40669.0,40652.0,0.797271]
[1645155882443,0.30828322,40669.0,40653.0,0.1084]
[1645155882646,0.25828322,40669.0,40654.0,0.5]
[1645155882849,0.12298181,40673.0,40664.0,0.061488]
[1645155883048,0.20793254,40675.0,40665.0,0.0582]
[1645155883245,0.20793254,40676.0,40666.0,0.049]
[1645155883445,0.00024957,40671.0,40666.0,0.049]
[1645155883644,0.24710178,40671.0,40666.0,0.049]
[1645155884244,0.48527453,40671.0,40666.0,0.049]
[1645155884443,0.32007911,40670.0,40666.0,0.171951]
[1645155884647,0.32007911,40670.0,40666.0,0.15510246]
[1645155884844,0.32007911,40670.0,40667.0,0.122954]
[1645155885044,0.32007911,40670.0,40668.0,0.049]
[1645155885297,0.32007911,40670.0,40669.0,0.061487]
[1645155885497,0.32007911,40670.0,40669.0,0.110487]
[1645155885995,0.00024957,40671.0,40669.0,0.110487]
[1645155886195,0.00024957,40671.0,40670.0,0.111483]
[1645155886394,0.00024957,40671.0,40670.0,0.160483]
[1645155886801,0.0099,40677.0,40672.0,0.061481]
[1645155887098,0.19520416,40676.0,40673.0,0.049]
[1645155887497,0.2515207,40675.0,40673.0,0.049]
[1645155887896,0.2515207,40675.0,40674.0,0.061478]
[1645155888097,0.2515207,40675.0,40674.0,0.049]
[1645155888296,0.3130033,40675.0,40674.0,0.049]
[1645155889847,0.3630033,40675.0,40674.0,0.049]
[1645155890042,0.4140033,40675.0,40674.0,0.049]
[1645155890442,0.3640033,40675.0,40674.0,0.049]
[1645155891143,0.3630033,40675.0,40674.0,0.049]
[1645155891743,0.12297024,40674.0,40667.0,1.04220065]
[1645155891944,0.06148399,40673.0,40667.0,1.04220065]
[1645155892348,0.06148399,40673.0,40670.0,0.061485]
[1645155892793,0.06148399,40673.0,40670.0,0.44208338]
[1645155893192,0.00024956,40674.0,40667.0,0.049]
[1645155893193,0.06172856,40674.0,40667.0,0.049]
[1645155893598,0.06172856,40674.0,40670.0,0.122964]
[1645155893993,0.06172856,40674.0,40670.0,0.061485]
[1645155893994,0.061479,40674.0,40670.0,0.061485]
[1645155894196,0.06172856,40674.0,40670.0,0.061485]
[1645155895093,0.061479,40674.0,40670.0,0.061485]
[1645155895495,0.06172856,40674.0,40670.0,0.061485]
[1645155896296,0.061479,40674.0,40670.0,0.061485]
[1645155896551,0.061479,40674.0,40670.0,0.122965]
[1645155896752,0.06172856,40674.0,40670.0,0.122965]
[1645155897652,0.046479,40674.0,40670.0,0.122965]
[1645155897854,0.04672856,40674.0,40670.0,0.122965]
[1645155898853,0.046479,40674.0,40670.0,0.122965]
[1645155899054,0.04672856,40674.0,40670.0,0.122965]
[1645155899656,0.00024956,40674.0,40670.0,0.122965]
[1645155900061,0.3015207,40675.0,40670.0,0.123965]
[1645155900295,0.00024956,40674.0,40670.0,0.123965]
[1645155900697,0.00024956,40674.0,40670.0,0.423965]
[1645155900897,0.00024956,40674.0,40672.0,0.06147]
[1645155901096,0.001,40679.0,40673.0,0.049]
[1645155901297,0.05,40684.0,40674.0,0.3]
[1645155901496,0.05,40684.0,40675.0,0.049]
[1645155901695,0.29855548,40681.0,40675.0,0.049]
[1645155902095,0.34855548,40681.0,40675.0,0.049]
[1645155902495,0.34855548,40681.0,40676.0,0.061469]
[1645155902700,0.34855548,40681.0,40677.0,0.11047]
[1645155902701,0.06171925,40680.0,40677.0,0.11047]
[1645155903700,0.06146971,40680.0,40677.0,0.11047]
[1645155906250,0.06346971,40680.0,40677.0,0.11047]
[1645155907452,0.06146971,40680.0,40677.0,0.11047]
[1645155907902,0.06146971,40680.0,40677.0,0.11037]
[1645155908098,0.06246971,40680.0,40677.0,0.11037]
[1645155909203,0.06246971,40680.0,40678.0,0.08920562]
[1645155909501,0.06246971,40680.0,40678.0,0.21214562]
[1645155909502,0.06146971,40680.0,40678.0,0.21214562]
[1645155909803,2.40088576,40679.0,40678.0,0.08920562]
[1645155912046,2.40188576,40679.0,40678.0,0.08920562]
[1645155913450,2.40088576,40679.0,40678.0,0.08920562]
[1645155913950,2.40188576,40679.0,40678.0,0.08920562]
[1645155915495,2.40088576,40679.0,40678.0,0.08920562]
[1645155916096,2.40188576,40679.0,40678.0,0.08920562]
[1645155917396,2.40088576,40679.0,40678.0,0.08920562]
[1645155918196,2.40088576,40679.0,40678.0,0.09020562]
[1645155919446,2.40088576,40679.0,40678.0,0.08920562]
[1645155920048,2.40088576,40679.0,40678.0,0.09020562]
[1645155921349,2.40088576,40679.0,40678.0,0.08920562]
[1645155921950,2.40188576,40679.0,40678.0,0.08920562]
[1645155922796,0.61432864,40678.0,40671.0,0.30611242]
[1645155922996,0.61432864,40678.0,40672.0,0.05]
[1645155923195,0.26432864,40678.0,40671.0,0.10511242]
[1645155923397,0.26432864,40678.0,40671.0,0.05511242]
[1645155923598,0.26432864,40678.0,40673.0,0.061475]
[1645155923796,0.28831159,40674.0,40673.0,0.061475]
[1645155925495,0.28831159,40674.0,40673.0,0.122951]
[1645155925696,0.28831159,40674.0,40673.0,0.172951]
[1645155926846,0.06147631,40675.0,40673.0,0.172951]
[1645155928047,0.06147631,40675.0,40673.0,0.174951]
[1645155929349,0.06147631,40675.0,40673.0,0.172951]
[1645155929951,2.37415884,40675.0,40673.0,0.172951]
[1645155930205,0.06147631,40675.0,40673.0,0.174951]
[1645155930799,0.06147631,40675.0,40673.0,0.124951]
[1645155931403,0.06147631,40675.0,40673.0,0.122951]
[1645155932002,0.06147631,40675.0,40673.0,0.124951]
[1645155932802,0.06147631,40675.0,40673.0,0.174951]
[1645155933403,0.06147631,40675.0,40673.0,0.172951]
[1645155936252,0.06147631,40675.0,40673.0,0.111475]
[1645155938099,0.06147631,40675.0,40673.0,0.113475]
[1645155939304,0.06147631,40675.0,40673.0,0.111475]
[1645155940201,0.06147631,40675.0,40673.0,0.113475]
[1645155943456,0.06147631,40675.0,40673.0,0.111475]
[1645155944056,0.06147631,40675.0,40673.0,0.113475]
[1645155945058,0.06147631,40675.0,40673.0,0.162475]
[1645155945499,0.06147631,40675.0,40673.0,0.160475]
[1645155945901,0.06147631,40675.0,40674.0,0.20936986]
[1645155946103,0.06147631,40675.0,40673.0,0.37184486]
[1645155946500,0.0002494,40676.0,40675.0,0.061472]
[1645155946902,0.20793254,40678.0,40675.0,0.061472]
[1645155947105,0.20818193,40678.0,40675.0,0.061472]
[1645155947303,0.20818193,40678.0,40675.0,0.06137835]
[1645155947500,0.26965474,40678.0,40675.0,0.06137835]
[1645155947901,0.26965474,40678.0,40675.0,0.12285135]
[1645155948103,0.20793254,40677.0,40675.0,0.12285135]
[1645155948303,0.26975033,40678.0,40676.0,0.061472]
[1645155949451,0.20793254,40677.0,40676.0,0.061472]
[1645155950051,0.20893254,40677.0,40676.0,0.061472]
[1645155951256,0.001,40677.0,40676.0,0.061472]
[1645155951453,0.20793254,40677.0,40676.0,0.122943]
[1645155952055,0.20793254,40677.0,40676.0,0.123943]
[1645155952901,0.20793254,40677.0,40675.0,0.16323966]
[1645155953102,0.20793254,40678.0,40675.0,0.16323966]
[1645155953401,0.20793254,40678.0,40676.0,0.061471]
[1645155953801,0.20793254,40678.0,40676.0,0.122943]
[1645155954202,0.20793254,40678.0,40676.0,0.123943]
[1645155954401,0.20793254,40678.0,40676.0,0.062472]
[1645155954603,0.32560653,40679.0,40676.0,0.062472]
[1645155954604,0.58552092,40679.0,40676.0,0.062472]
[1645155955004,0.20829365,40677.0,40676.0,0.123946]
[1645155955201,0.32560653,40679.0,40676.0,0.123946]
[1645155955202,0.20829365,40678.0,40676.0,0.123946]
[1645155955401,0.20829365,40678.0,40676.0,0.122946]
[1645155956202,0.20829365,40678.0,40676.0,0.123946]
[1645155957455,0.20829365,40678.0,40676.0,0.122946]
[1645155958150,0.20929365,40678.0,40676.0,0.122946]
[1645155959553,0.20829365,40678.0,40676.0,0.122946]
[1645155960205,0.20929365,40678.0,40676.0,0.122946]
[1645155961404,0.20829365,40678.0,40676.0,0.122946]
[1645155962202,0.20829365,40678.0,40676.0,0.123946]